[Event "Titled Tuesday Blitz May 30 Late 2023"]
[White "Rose, Felix"]
[Black "Omelja, Artem"]
[WhiteFideId "5105722"]
[BlackFideId "14119846"]
[WhiteElo "2039"]
[BlackElo "2404"]
[Result "1-0"]
[Round "06"]
[TimeControl "180+2"]
[Date "2023.05.31"]
[WhiteClock "0:00:12"]
[BlackClock "0:00:01"]

1. d4 {[%clk 0:03:00]}  d5 {[%clk 0:02:24]} 2. Nf3 {[%clk 0:03:00]}  Nf6 {[%clk 0:02:23]} 3. e3 {[%clk 0:03:00]}  e6 {[%clk 0:02:23]} 4. Bd3 {[%clk 0:02:59]}  c5 {[%clk 0:02:22]} 5. c3 {[%clk 0:02:59]}  Nc6 {[%clk 0:02:22]} 6. O-O {[%clk 0:02:59]}  Bd6 {[%clk 0:02:22]} 7. Nbd2 {[%clk 0:02:57]}  O-O {[%clk 0:02:21]} 8. dxc5 {[%clk 0:02:49]}  Bxc5 {[%clk 0:02:21]} 9. e4 {[%clk 0:02:50]}  dxe4 {[%clk 0:02:18]} 10. Nxe4 {[%clk 0:02:51]}  Be7 {[%clk 0:02:14]} 11. Qe2 {[%clk 0:02:50]}  b6 {[%clk 0:02:11]} 12. Nxf6+ {[%clk 0:02:50]}  Bxf6 {[%clk 0:02:02]} 13. Qe4 {[%clk 0:02:50]}  g6 {[%clk 0:02:02]} 14. Qxc6 {[%clk 0:02:49]}  Qxd3 {[%clk 0:02:02]} 15. Bh6 {[%clk 0:02:17]}  Bd7 {[%clk 0:01:52]} 16. Qb7 {[%clk 0:01:58]}  Rfb8 {[%clk 0:01:50]} 17. Qc7 {[%clk 0:01:58]}  Rc8 {[%clk 0:01:50]} 18. Qf4 {[%clk 0:01:48]}  Qf5 {[%clk 0:01:49]} 19. Qxf5 {[%clk 0:01:47]}  exf5 {[%clk 0:01:49]} 20. Rfd1 {[%clk 0:01:44]}  Be6 {[%clk 0:01:44]} 21. Nd4 {[%clk 0:01:37]}  Bc4 {[%clk 0:01:44]} 22. b3 {[%clk 0:01:24]}  Ba6 {[%clk 0:01:32]} 23. c4 {[%clk 0:01:16]}  Rd8 {[%clk 0:00:57]} 24. Nc6 {[%clk 0:01:13]}  Bxa1 {[%clk 0:00:37]} 25. Nxd8 {[%clk 0:01:00]}  Rc8 {[%clk 0:00:14]} 26. Nxf7 {[%clk 0:00:44]}  Kxf7 {[%clk 0:00:14]} 27. Rxa1 {[%clk 0:00:44]}  Rd8 {[%clk 0:00:14]} 28. Be3 {[%clk 0:00:43]}  Rd3 {[%clk 0:00:13]} 29. h4 {[%clk 0:00:43]}  Bb7 {[%clk 0:00:13]} 30. c5 {[%clk 0:00:40]}  bxc5 {[%clk 0:00:13]} 31. Bxc5 {[%clk 0:00:41]}  a6 {[%clk 0:00:13]} 32. b4 {[%clk 0:00:41]}  Rd2 {[%clk 0:00:13]} 33. a4 {[%clk 0:00:40]}  Bc6 {[%clk 0:00:13]} 34. b5 {[%clk 0:00:33]}  axb5 {[%clk 0:00:13]} 35. axb5 {[%clk 0:00:34]}  Bxb5 {[%clk 0:00:13]} 36. Ra7+ {[%clk 0:00:34]}  Bd7 {[%clk 0:00:13]} 37. Be3 {[%clk 0:00:32]}  Rd1+ {[%clk 0:00:12]} 38. Kh2 {[%clk 0:00:32]}  Ke6 {[%clk 0:00:10]} 39. Kg3 {[%clk 0:00:32]}  Rd6 {[%clk 0:00:10]} 40. Ra8 {[%clk 0:00:31]}  Rc6 {[%clk 0:00:09]} 41. Rh8 {[%clk 0:00:31]}  h5 {[%clk 0:00:10]} 42. Bg5 {[%clk 0:00:28]}  Rc4 {[%clk 0:00:09]} 43. f3 {[%clk 0:00:27]}  Bc6 {[%clk 0:00:09]} 44. Rf8 {[%clk 0:00:25]}  Kd7 {[%clk 0:00:09]} 45. Rf6 {[%clk 0:00:25]}  Bd5 {[%clk 0:00:09]} 46. Rxg6 {[%clk 0:00:25]}  Bf7 {[%clk 0:00:09]} 47. Rg7 {[%clk 0:00:25]}  Ke6 {[%clk 0:00:09]} 48. Rh7 {[%clk 0:00:24]}  Rc8 {[%clk 0:00:09]} 49. Rh6+ {[%clk 0:00:24]}  Ke5 {[%clk 0:00:08]} 50. Bf4+ {[%clk 0:00:23]}  Kd5 {[%clk 0:00:08]} 51. Rd6+ {[%clk 0:00:23]}  Kc5 {[%clk 0:00:08]} 52. Rf6 {[%clk 0:00:23]}  Rg8+ {[%clk 0:00:05]} 53. Kf2 {[%clk 0:00:23]}  Bg6 {[%clk 0:00:05]} 54. Bg5 {[%clk 0:00:19]}  Kd5 {[%clk 0:00:06]} 55. Ke3 {[%clk 0:00:18]}  Ke5 {[%clk 0:00:06]} 56. Rb6 {[%clk 0:00:17]}  Bf7 {[%clk 0:00:05]} 57. Bf6+ {[%clk 0:00:18]}  Kd5 {[%clk 0:00:05]} 58. Kf2 {[%clk 0:00:15]}  Re8 {[%clk 0:00:05]} 59. Bg5 {[%clk 0:00:15]}  Re6 {[%clk 0:00:05]} 60. Rb5+ {[%clk 0:00:15]}  Kd4 {[%clk 0:00:05]} 61. Kg3 {[%clk 0:00:16]}  Bg6 {[%clk 0:00:05]} 62. Kf4 {[%clk 0:00:16]}  Re2 {[%clk 0:00:06]} 63. Bf6+ {[%clk 0:00:14]}  Kc4 {[%clk 0:00:05]} 64. Rb6 {[%clk 0:00:15]}  Rxg2 {[%clk 0:00:04]} 65. Bg5 {[%clk 0:00:15]}  Be8 {[%clk 0:00:04]} 66. Kxf5 {[%clk 0:00:15]}  Bd7+ {[%clk 0:00:04]} 67. Kf6 {[%clk 0:00:15]}  Kc5 {[%clk 0:00:04]} 68. Rb1 {[%clk 0:00:13]}  Kd5 {[%clk 0:00:04]} 69. Rd1+ {[%clk 0:00:14]}  Kc6 {[%clk 0:00:05]} 70. Bf4 {[%clk 0:00:13]}  Rf2 {[%clk 0:00:05]} 71. Rd6+ {[%clk 0:00:14]}  Kc5 {[%clk 0:00:04]} 72. Rxd7 {[%clk 0:00:14]}  Rxf3 {[%clk 0:00:05]} 73. Kg5 {[%clk 0:00:14]}  Kc6 {[%clk 0:00:05]} 74. Rf7 {[%clk 0:00:14]}  Kd5 {[%clk 0:00:05]} 75. Rf5+ {[%clk 0:00:14]}  Ke6 {[%clk 0:00:05]} 76. Rf6+ {[%clk 0:00:13]}  Kd7 {[%clk 0:00:04]} 77. Be5 {[%clk 0:00:13]}  Re3 {[%clk 0:00:05]} 78. Rf5 {[%clk 0:00:13]}  Ke6 {[%clk 0:00:04]} 79. Bf4 {[%clk 0:00:13]}  Re1 {[%clk 0:00:04]} 80. Rf6+ {[%clk 0:00:13]}  Ke7 {[%clk 0:00:04]} 81. Ra6 {[%clk 0:00:12]}  Rf1 {[%clk 0:00:03]} 82. Ra7+ {[%clk 0:00:12]}  Ke6 {[%clk 0:00:03]} 83. Ra6+ {[%clk 0:00:12]}  Kf7 {[%clk 0:00:04]} 84. Bg3 {[%clk 0:00:11]}  Rg1 {[%clk 0:00:03]} 85. Ra3 {[%clk 0:00:12]}  Rd1 {[%clk 0:00:02]} 86. Kxh5 {[%clk 0:00:12]}  Rd5+ {[%clk 0:00:03]} 87. Kg4 {[%clk 0:00:12]}  Kg6 {[%clk 0:00:03]} 88. Bf4 {[%clk 0:00:12]}  Rc5 {[%clk 0:00:03]} 89. Ra6+ {[%clk 0:00:12]}  Kh7 {[%clk 0:00:03]} 90. h5 {[%clk 0:00:12]}  Rc8 {[%clk 0:00:03]} 91. Ra7+ {[%clk 0:00:12]}  Kg8 {[%clk 0:00:03]} 92. Kf5 {[%clk 0:00:12]}  Rf8+ {[%clk 0:00:03]} 93. Kg5 {[%clk 0:00:13]}  Rc8 {[%clk 0:00:04]} 94. Be5 {[%clk 0:00:13]}  Rc1 {[%clk 0:00:03]} 95. h6 {[%clk 0:00:12]}  Rg1+ {[%clk 0:00:03]} 96. Kf5 {[%clk 0:00:13]}  Rf1+ {[%clk 0:00:04]} 97. Ke6 {[%clk 0:00:13]}  Rh1 {[%clk 0:00:03]} 98. Rg7+ {[%clk 0:00:11]}  Kf8 {[%clk 0:00:03]} 99. Bf4 {[%clk 0:00:12]}  Rh4 {[%clk 0:00:02]} 100. Kf5 {[%clk 0:00:12]}  Rh5+ {[%clk 0:00:02]} 101. Kg6 {[%clk 0:00:12]}  Rh1 {[%clk 0:00:02]} 102. Rf7+ {[%clk 0:00:12]}  Kg8 {[%clk 0:00:01]} 103. h7+ {[%clk 0:00:12]} 1-0


[Site "https://www.chess.com"]

[Event "Titled Tuesday Blitz May 30 Late 2023"]
[White "Do Nascimento,Christian Almeida"]
[Black "Dragomirescu, Calin"]
[WhiteFideId "2143801"]
[BlackFideId "1200895"]
[WhiteElo "2118"]
[BlackElo "2010"]
[Result "1/2-1/2"]
[Round "06"]
[TimeControl "180+2"]
[Date "2023.05.31"]
[WhiteClock "0:00:09"]
[BlackClock "0:00:30"]

1. c4 {[%clk 0:03:00]}  g6 {[%clk 0:02:59]} 2. g3 {[%clk 0:02:59]}  Bg7 {[%clk 0:02:59]} 3. Bg2 {[%clk 0:03:00]}  Nf6 {[%clk 0:03:00]} 4. Nf3 {[%clk 0:03:01]}  O-O {[%clk 0:03:00]} 5. O-O {[%clk 0:03:01]}  d6 {[%clk 0:03:00]} 6. Nc3 {[%clk 0:03:02]}  c6 {[%clk 0:03:00]} 7. d4 {[%clk 0:02:57]}  Nbd7 {[%clk 0:02:59]} 8. Re1 {[%clk 0:02:54]}  e5 {[%clk 0:02:59]} 9. dxe5 {[%clk 0:02:53]}  Nxe5 {[%clk 0:02:58]} 10. Nxe5 {[%clk 0:02:53]}  dxe5 {[%clk 0:02:59]} 11. b3 {[%clk 0:02:39]}  Qxd1 {[%clk 0:02:57]} 12. Rxd1 {[%clk 0:02:39]}  Bg4 {[%clk 0:02:53]} 13. Bb2 {[%clk 0:02:39]}  Rfd8 {[%clk 0:02:48]} 14. h3 {[%clk 0:02:39]}  Bf5 {[%clk 0:02:47]} 15. Na4 {[%clk 0:02:33]}  e4 {[%clk 0:02:32]} 16. Nc5 {[%clk 0:02:30]}  b6 {[%clk 0:02:28]} 17. Na4 {[%clk 0:02:24]}  h5 {[%clk 0:02:20]} 18. Nc3 {[%clk 0:02:16]}  Nd7 {[%clk 0:02:10]} 19. Na4 {[%clk 0:02:04]}  Bxb2 {[%clk 0:02:07]} 20. Nxb2 {[%clk 0:02:05]}  Nc5 {[%clk 0:02:00]} 21. Rxd8+ {[%clk 0:02:04]}  Rxd8 {[%clk 0:02:00]} 22. Rd1 {[%clk 0:02:05]}  Rxd1+ {[%clk 0:01:58]} 23. Nxd1 {[%clk 0:02:06]}  a5 {[%clk 0:01:56]} 24. Nc3 {[%clk 0:01:59]}  Kg7 {[%clk 0:01:52]} 25. Kf1 {[%clk 0:01:59]}  Kf6 {[%clk 0:01:51]} 26. Ke1 {[%clk 0:02:00]}  Ke5 {[%clk 0:01:52]} 27. Kd2 {[%clk 0:02:00]}  g5 {[%clk 0:01:47]} 28. Ke3 {[%clk 0:01:57]}  Bg6 {[%clk 0:01:43]} 29. f4+ {[%clk 0:01:55]}  exf3 {[%clk 0:01:42]} 30. exf3 {[%clk 0:01:55]}  f6 {[%clk 0:01:33]} 31. f4+ {[%clk 0:01:55]}  gxf4+ {[%clk 0:01:33]} 32. gxf4+ {[%clk 0:01:55]}  Kd6 {[%clk 0:01:34]} 33. Be4 {[%clk 0:01:49]}  Bxe4 {[%clk 0:01:30]} 34. Nxe4+ {[%clk 0:01:48]}  Nxe4 {[%clk 0:01:30]} 35. Kxe4 {[%clk 0:01:49]}  Ke6 {[%clk 0:01:30]} 36. f5+ {[%clk 0:01:44]}  Kd6 {[%clk 0:01:27]} 37. Kd4 {[%clk 0:01:28]}  b5 {[%clk 0:01:19]} 38. a3 {[%clk 0:01:21]}  c5+ {[%clk 0:01:16]} 39. Ke4 {[%clk 0:01:21]}  bxc4 {[%clk 0:01:08]} 40. bxc4 {[%clk 0:01:21]}  a4 {[%clk 0:01:06]} 41. Kf4 {[%clk 0:01:19]}  Kc6 {[%clk 0:01:04]} 42. Kg3 {[%clk 0:00:54]}  Kd6 {[%clk 0:01:04]} 43. Kh4 {[%clk 0:00:55]}  Ke5 {[%clk 0:01:04]} 44. Kxh5 {[%clk 0:00:55]}  Kxf5 {[%clk 0:01:05]} 45. h4 {[%clk 0:00:56]}  Ke4 {[%clk 0:00:59]} 46. Kg6 {[%clk 0:00:49]}  f5 {[%clk 0:00:59]} 47. h5 {[%clk 0:00:50]}  f4 {[%clk 0:01:00]} 48. h6 {[%clk 0:00:50]}  f3 {[%clk 0:01:01]} 49. h7 {[%clk 0:00:51]}  f2 {[%clk 0:01:02]} 50. h8=Q {[%clk 0:00:52]}  f1=Q {[%clk 0:01:02]} 51. Qa8+ {[%clk 0:00:31]}  Kd4 {[%clk 0:00:52]} 52. Qd5+ {[%clk 0:00:30]}  Kc3 {[%clk 0:00:53]} 53. Qxc5 {[%clk 0:00:28]}  Qxc4 {[%clk 0:00:50]} 54. Qe5+ {[%clk 0:00:23]}  Kb3 {[%clk 0:00:47]} 55. Qe7 {[%clk 0:00:18]}  Qd3+ {[%clk 0:00:38]} 56. Kg5 {[%clk 0:00:15]}  Qd2+ {[%clk 0:00:36]} 57. Kf5 {[%clk 0:00:15]}  Qc2+ {[%clk 0:00:35]} 58. Kg4 {[%clk 0:00:14]}  Qb2 {[%clk 0:00:32]} 59. Qb4+ {[%clk 0:00:13]}  Ka2 {[%clk 0:00:29]} 60. Qxa4 {[%clk 0:00:13]}  Qxa3 {[%clk 0:00:29]} 61. Qc2+ {[%clk 0:00:13]}  Qb2 {[%clk 0:00:29]} 62. Qa4+ {[%clk 0:00:13]}  Qa3 {[%clk 0:00:30]} 63. Qc2+ {[%clk 0:00:13]}  Qb2 {[%clk 0:00:30]} 64. Qa4+ {[%clk 0:00:09]}  Qa3 {[%clk 0:00:30]} 1/2-1/2


[Site "https://www.chess.com"]

[Event "Titled Tuesday Blitz May 30 Late 2023"]
[White "Stachanczyk, Jacek"]
[Black "SergioMoralesG"]
[WhiteFideId "1116657"]
[WhiteElo "2084"]
[BlackElo "2512"]
[Result "0-1"]
[Round "06"]
[TimeControl "180+2"]
[Date "2023.05.31"]
[WhiteClock "0:01:03"]
[BlackClock "0:00:22"]

1. e4 {[%clk 0:02:57]}  c5 {[%clk 0:02:59]} 2. Nf3 {[%clk 0:02:56]}  d6 {[%clk 0:03:00]} 3. d4 {[%clk 0:02:57]}  cxd4 {[%clk 0:03:00]} 4. Nxd4 {[%clk 0:02:58]}  Nf6 {[%clk 0:03:00]} 5. Nc3 {[%clk 0:02:58]}  a6 {[%clk 0:03:00]} 6. Bg5 {[%clk 0:02:58]}  Nbd7 {[%clk 0:02:59]} 7. f4 {[%clk 0:02:58]}  h6 {[%clk 0:02:57]} 8. Bh4 {[%clk 0:02:58]}  e6 {[%clk 0:02:53]} 9. Qf3 {[%clk 0:02:57]}  Be7 {[%clk 0:02:53]} 10. O-O-O {[%clk 0:02:57]}  Qa5 {[%clk 0:02:50]} 11. Be2 {[%clk 0:02:40]}  g5 {[%clk 0:02:35]} 12. fxg5 {[%clk 0:02:37]}  hxg5 {[%clk 0:02:35]} 13. Be1 {[%clk 0:02:37]}  Ne5 {[%clk 0:02:30]} 14. Qe3 {[%clk 0:02:30]}  Qc7 {[%clk 0:02:26]} 15. Nf3 {[%clk 0:02:22]}  g4 {[%clk 0:02:12]} 16. Nxe5 {[%clk 0:02:21]}  dxe5 {[%clk 0:02:13]} 17. h4 {[%clk 0:02:11]}  Bd7 {[%clk 0:02:09]} 18. g3 {[%clk 0:02:11]}  O-O-O {[%clk 0:02:05]} 19. Bd2 {[%clk 0:02:11]}  Kb8 {[%clk 0:02:03]} 20. Qf2 {[%clk 0:02:11]}  Bc6 {[%clk 0:02:02]} 21. Rhf1 {[%clk 0:02:04]}  Nxe4 {[%clk 0:01:46]} 22. Nxe4 {[%clk 0:02:04]}  Bxe4 {[%clk 0:01:46]} 23. Bc3 {[%clk 0:01:59]}  f5 {[%clk 0:01:40]} 24. Qe1 {[%clk 0:01:40]}  Bb4 {[%clk 0:01:31]} 25. Bxg4 {[%clk 0:01:29]}  Bxc3 {[%clk 0:01:25]} 26. bxc3 {[%clk 0:01:30]}  Qc5 {[%clk 0:01:05]} 27. Bf3 {[%clk 0:01:20]}  Rxd1+ {[%clk 0:00:52]} 28. Qxd1 {[%clk 0:01:19]}  Bxf3 {[%clk 0:00:38]} 29. Qxf3 {[%clk 0:01:14]}  Rd8 {[%clk 0:00:33]} 30. h5 {[%clk 0:01:12]}  Qa3+ {[%clk 0:00:30]} 31. Kb1 {[%clk 0:01:11]}  Rd6 {[%clk 0:00:25]} 32. Qe3 {[%clk 0:01:09]}  Rd5 {[%clk 0:00:24]} 33. Ka1 {[%clk 0:01:03]}  Ra5 {[%clk 0:00:22]} 0-1


[Site "https://www.chess.com"]

[Event "Titled Tuesday Blitz May 30 Late 2023"]
[White "Remolar Gallen, Jose"]
[Black "Magallanes, Rey Jomar"]
[WhiteFideId "2215187"]
[BlackFideId "5205948"]
[WhiteElo "2223"]
[BlackElo "2257"]
[Result "0-1"]
[Round "06"]
[TimeControl "180+2"]
[Date "2023.05.31"]
[WhiteClock "0:00:01"]
[BlackClock "0:00:21"]

1. e4 {[%clk 0:02:55]}  c5 {[%clk 0:02:59]} 2. Nf3 {[%clk 0:02:55]}  d6 {[%clk 0:02:59]} 3. d4 {[%clk 0:02:55]}  cxd4 {[%clk 0:03:00]} 4. Nxd4 {[%clk 0:02:56]}  Nf6 {[%clk 0:03:00]} 5. Nc3 {[%clk 0:02:56]}  a6 {[%clk 0:03:01]} 6. Bg5 {[%clk 0:02:56]}  e6 {[%clk 0:03:00]} 7. f4 {[%clk 0:02:56]}  Be7 {[%clk 0:03:00]} 8. Qf3 {[%clk 0:02:56]}  Qc7 {[%clk 0:02:59]} 9. O-O-O {[%clk 0:02:55]}  Nbd7 {[%clk 0:02:59]} 10. g4 {[%clk 0:02:55]}  h6 {[%clk 0:02:57]} 11. Bh4 {[%clk 0:02:54]}  g5 {[%clk 0:02:56]} 12. fxg5 {[%clk 0:02:53]}  Ne5 {[%clk 0:02:56]} 13. Qe2 {[%clk 0:02:44]}  Nfxg4 {[%clk 0:02:56]} 14. h3 {[%clk 0:02:30]}  hxg5 {[%clk 0:02:46]} 15. Bg3 {[%clk 0:02:30]}  Nf6 {[%clk 0:02:45]} 16. Nf3 {[%clk 0:02:23]}  Nh5 {[%clk 0:02:42]} 17. Bh2 {[%clk 0:02:21]}  Nf4 {[%clk 0:02:39]} 18. Qe3 {[%clk 0:02:12]}  Nxh3 {[%clk 0:02:29]} 19. Bxe5 {[%clk 0:01:59]}  dxe5 {[%clk 0:02:24]} 20. Rxh3 {[%clk 0:01:59]}  Rg8 {[%clk 0:02:18]} 21. Rh5 {[%clk 0:01:54]}  g4 {[%clk 0:02:17]} 22. Nxe5 {[%clk 0:01:43]}  g3 {[%clk 0:02:14]} 23. Qf3 {[%clk 0:00:59]}  Bg5+ {[%clk 0:02:12]} 24. Rxg5 {[%clk 0:00:49]}  Rxg5 {[%clk 0:02:11]} 25. Rd7 {[%clk 0:00:32]}  Bxd7 {[%clk 0:01:42]} 26. Qxf7+ {[%clk 0:00:31]}  Kd8 {[%clk 0:01:42]} 27. Qf6+ {[%clk 0:00:30]}  Kc8 {[%clk 0:01:41]} 28. Qxg5 {[%clk 0:00:31]}  Be8 {[%clk 0:01:34]} 29. Qxg3 {[%clk 0:00:22]}  Kb8 {[%clk 0:01:29]} 30. Bh3 {[%clk 0:00:16]}  Ka7 {[%clk 0:01:28]} 31. Bxe6 {[%clk 0:00:13]}  Bh5 {[%clk 0:01:18]} 32. Nd5 {[%clk 0:00:11]}  Qd6 {[%clk 0:01:07]} 33. Qf2+ {[%clk 0:00:08]}  b6 {[%clk 0:01:05]} 34. Qf6 {[%clk 0:00:02]}  Rb8 {[%clk 0:00:48]} 35. Nd7 {[%clk 0:00:01]}  Re8 {[%clk 0:00:40]} 36. Bf5 {[%clk 0:00:01]}  Qxf6 {[%clk 0:00:21]} 0-1


[Site "https://www.chess.com"]

[Event "Titled Tuesday Blitz May 30 Late 2023"]
[White "Uzcategui Rodriguez, Alejandro"]
[Black "Cardozo Munar, Carlos Eduardo"]
[WhiteFideId "3903400"]
[BlackFideId "4409477"]
[WhiteElo "2252"]
[BlackElo "2067"]
[Result "1/2-1/2"]
[Round "06"]
[TimeControl "180+2"]
[Date "2023.05.31"]
[WhiteClock "0:00:10"]
[BlackClock "0:00:25"]

1. d4 {[%clk 0:02:55]}  d5 {[%clk 0:02:59]} 2. Nf3 {[%clk 0:02:56]}  c6 {[%clk 0:02:54]} 3. c3 {[%clk 0:02:57]}  Nf6 {[%clk 0:02:45]} 4. Bg5 {[%clk 0:02:56]}  Bf5 {[%clk 0:02:44]} 5. Nbd2 {[%clk 0:02:55]}  e6 {[%clk 0:02:44]} 6. e3 {[%clk 0:02:54]}  Be7 {[%clk 0:02:44]} 7. Qb3 {[%clk 0:02:53]}  Qb6 {[%clk 0:02:43]} 8. Be2 {[%clk 0:02:42]}  Nbd7 {[%clk 0:02:44]} 9. O-O {[%clk 0:02:40]}  h6 {[%clk 0:02:41]} 10. Bh4 {[%clk 0:02:40]}  Qxb3 {[%clk 0:02:38]} 11. axb3 {[%clk 0:02:38]}  Ne4 {[%clk 0:02:39]} 12. Bxe7 {[%clk 0:02:32]}  Nxd2 {[%clk 0:02:33]} 13. Nxd2 {[%clk 0:02:24]}  Kxe7 {[%clk 0:02:32]} 14. Bf3 {[%clk 0:02:20]}  Nf6 {[%clk 0:02:31]} 15. Rfe1 {[%clk 0:02:20]}  a6 {[%clk 0:02:16]} 16. e4 {[%clk 0:02:19]}  dxe4 {[%clk 0:02:15]} 17. Nxe4 {[%clk 0:02:20]}  Nxe4 {[%clk 0:02:15]} 18. Bxe4 {[%clk 0:02:20]}  Bxe4 {[%clk 0:02:16]} 19. Rxe4 {[%clk 0:02:20]}  Kd6 {[%clk 0:02:17]} 20. Rae1 {[%clk 0:02:20]}  Rhe8 {[%clk 0:02:11]} 21. Re5 {[%clk 0:02:15]}  Re7 {[%clk 0:02:10]} 22. f4 {[%clk 0:02:15]}  Rae8 {[%clk 0:02:09]} 23. Kf2 {[%clk 0:02:15]}  f6 {[%clk 0:02:09]} 24. R5e4 {[%clk 0:02:14]}  e5 {[%clk 0:02:06]} 25. dxe5+ {[%clk 0:01:49]}  fxe5 {[%clk 0:02:07]} 26. Kf3 {[%clk 0:01:40]}  exf4 {[%clk 0:02:00]} 27. Rxe7 {[%clk 0:01:36]}  Rxe7 {[%clk 0:02:00]} 28. Rxe7 {[%clk 0:01:35]}  Kxe7 {[%clk 0:02:01]} 29. Kxf4 {[%clk 0:01:35]}  Kf6 {[%clk 0:02:02]} 30. b4 {[%clk 0:01:27]}  b6 {[%clk 0:01:56]} 31. h4 {[%clk 0:01:15]}  g6 {[%clk 0:01:51]} 32. g3 {[%clk 0:01:09]}  Ke6 {[%clk 0:01:50]} 33. Ke4 {[%clk 0:01:06]}  Kd6 {[%clk 0:01:49]} 34. g4 {[%clk 0:01:00]}  Ke6 {[%clk 0:01:48]} 35. c4 {[%clk 0:00:59]}  c5 {[%clk 0:01:05]} 36. bxc5 {[%clk 0:00:51]}  bxc5 {[%clk 0:01:04]} 37. b3 {[%clk 0:00:27]}  a5 {[%clk 0:01:03]} 38. h5 {[%clk 0:00:13]}  g5 {[%clk 0:00:43]} 39. Kd3 {[%clk 0:00:13]}  Ke5 {[%clk 0:00:39]} 40. Ke3 {[%clk 0:00:13]}  Kd6 {[%clk 0:00:37]} 41. Kf3 {[%clk 0:00:12]}  Ke5 {[%clk 0:00:35]} 42. Ke3 {[%clk 0:00:13]}  Kf6 {[%clk 0:00:34]} 43. Ke4 {[%clk 0:00:12]}  Ke6 {[%clk 0:00:34]} 44. Kd3 {[%clk 0:00:11]}  Ke5 {[%clk 0:00:25]} 45. Ke3 {[%clk 0:00:10]} 1/2-1/2


[Site "https://www.chess.com"]

[Event "Titled Tuesday Blitz May 30 Late 2023"]
[White "KSho99"]
[Black "Jovic, Stanoje"]
[BlackFideId "905020"]
[WhiteElo "2205"]
[BlackElo "2236"]
[Result "0-1"]
[Round "06"]
[TimeControl "180+2"]
[Date "2023.05.31"]
[WhiteClock "0:00:18"]
[BlackClock "0:00:51"]

1. Nf3 {[%clk 0:02:59]}  Nf6 {[%clk 0:02:59]} 2. b3 {[%clk 0:02:59]}  c5 {[%clk 0:02:58]} 3. Bb2 {[%clk 0:02:58]}  d5 {[%clk 0:02:58]} 4. e3 {[%clk 0:02:58]}  Nc6 {[%clk 0:02:58]} 5. Bb5 {[%clk 0:02:58]}  Bg4 {[%clk 0:02:57]} 6. h3 {[%clk 0:02:56]}  Bh5 {[%clk 0:02:56]} 7. g4 {[%clk 0:02:55]}  Bg6 {[%clk 0:02:56]} 8. Ne5 {[%clk 0:02:56]}  Qb6 {[%clk 0:02:50]} 9. Bxc6+ {[%clk 0:02:48]}  bxc6 {[%clk 0:02:49]} 10. h4 {[%clk 0:02:33]}  h5 {[%clk 0:02:45]} 11. Nxg6 {[%clk 0:02:29]}  fxg6 {[%clk 0:02:45]} 12. g5 {[%clk 0:02:28]}  Ne4 {[%clk 0:02:41]} 13. Nc3 {[%clk 0:02:13]}  Nd6 {[%clk 0:02:16]} 14. Na4 {[%clk 0:02:06]}  Qb5 {[%clk 0:02:14]} 15. Qe2 {[%clk 0:01:56]}  c4 {[%clk 0:02:11]} 16. Nc3 {[%clk 0:01:37]}  Qa6 {[%clk 0:02:05]} 17. e4 {[%clk 0:01:27]}  d4 {[%clk 0:02:01]} 18. Na4 {[%clk 0:01:21]}  e5 {[%clk 0:01:59]} 19. Nc5 {[%clk 0:01:08]}  Qb5 {[%clk 0:01:52]} 20. Ne6 {[%clk 0:01:04]}  Kd7 {[%clk 0:01:44]} 21. a4 {[%clk 0:00:48]}  Qa5 {[%clk 0:01:19]} 22. Nxf8+ {[%clk 0:00:36]}  Rhxf8 {[%clk 0:01:19]} 23. bxc4 {[%clk 0:00:37]}  Rf4 {[%clk 0:01:18]} 24. f3 {[%clk 0:00:34]}  Raf8 {[%clk 0:01:18]} 25. Ra3 {[%clk 0:00:34]}  Nb7 {[%clk 0:01:07]} 26. Kd1 {[%clk 0:00:22]}  Nc5 {[%clk 0:01:05]} 27. Rh3 {[%clk 0:00:19]}  Qb4 {[%clk 0:00:56]} 28. Bc1 {[%clk 0:00:19]}  Qb1 {[%clk 0:00:52]} 29. Qd3 {[%clk 0:00:18]}  Nxd3 {[%clk 0:00:51]} 0-1


[Site "https://www.chess.com"]

[Event "Titled Tuesday Blitz May 30 Late 2023"]
[White "Kielinkei"]
[Black "zano2023"]
[WhiteElo "2474"]
[BlackElo "2194"]
[Result "1-0"]
[Round "06"]
[TimeControl "180+2"]
[Date "2023.05.31"]
[WhiteClock "0:00:27"]
[BlackClock "0:00:15"]

1. e4 {[%clk 0:03:00]}  e5 {[%clk 0:02:59]} 2. Nf3 {[%clk 0:02:59]}  d6 {[%clk 0:02:59]} 3. Bc4 {[%clk 0:02:57]}  Be7 {[%clk 0:02:57]} 4. O-O {[%clk 0:02:56]}  Nf6 {[%clk 0:02:57]} 5. d3 {[%clk 0:02:52]}  O-O {[%clk 0:02:56]} 6. c3 {[%clk 0:02:47]}  Bg4 {[%clk 0:02:52]} 7. h3 {[%clk 0:02:47]}  Bh5 {[%clk 0:02:52]} 8. Nbd2 {[%clk 0:02:47]}  c6 {[%clk 0:02:51]} 9. Qe2 {[%clk 0:02:42]}  Nbd7 {[%clk 0:02:50]} 10. Re1 {[%clk 0:02:41]}  Re8 {[%clk 0:02:35]} 11. Nf1 {[%clk 0:02:41]}  d5 {[%clk 0:02:30]} 12. Bb3 {[%clk 0:02:40]}  dxe4 {[%clk 0:02:29]} 13. dxe4 {[%clk 0:02:41]}  Bxf3 {[%clk 0:02:21]} 14. Qxf3 {[%clk 0:02:40]}  Nc5 {[%clk 0:02:22]} 15. Bc2 {[%clk 0:02:40]}  Qc7 {[%clk 0:02:08]} 16. Ng3 {[%clk 0:02:39]}  g6 {[%clk 0:01:57]} 17. Bg5 {[%clk 0:02:35]}  Kg7 {[%clk 0:01:51]} 18. Rad1 {[%clk 0:02:15]}  Ne6 {[%clk 0:01:50]} 19. Be3 {[%clk 0:02:10]}  Red8 {[%clk 0:01:38]} 20. Bb3 {[%clk 0:01:56]}  Nc5 {[%clk 0:01:27]} 21. Bc4 {[%clk 0:01:56]}  b5 {[%clk 0:01:26]} 22. Bb3 {[%clk 0:01:42]}  a5 {[%clk 0:01:21]} 23. h4 {[%clk 0:01:34]}  Nd3 {[%clk 0:01:12]} 24. Rxd3 {[%clk 0:01:19]}  Rxd3 {[%clk 0:01:11]} 25. Bh6+ {[%clk 0:01:20]}  Kxh6 {[%clk 0:01:10]} 26. Qxd3 {[%clk 0:01:21]}  Rd8 {[%clk 0:01:01]} 27. Qe3+ {[%clk 0:01:17]}  Kg7 {[%clk 0:01:01]} 28. h5 {[%clk 0:01:17]}  h6 {[%clk 0:00:54]} 29. Bxf7 {[%clk 0:01:05]}  Kxf7 {[%clk 0:00:49]} 30. Qxh6 {[%clk 0:01:03]}  Rg8 {[%clk 0:00:49]} 31. Re3 {[%clk 0:00:46]}  Ng4 {[%clk 0:00:37]} 32. Rf3+ {[%clk 0:00:42]}  Bf6 {[%clk 0:00:31]} 33. Qh7+ {[%clk 0:00:39]}  Rg7 {[%clk 0:00:31]} 34. hxg6+ {[%clk 0:00:39]}  Kf8 {[%clk 0:00:27]} 35. Qh8+ {[%clk 0:00:37]}  Ke7 {[%clk 0:00:18]} 36. Nh5 {[%clk 0:00:30]}  Rxg6 {[%clk 0:00:16]} 37. Qh7+ {[%clk 0:00:28]}  Bg7 {[%clk 0:00:15]} 38. Qxg6 {[%clk 0:00:27]} 1-0


[Site "https://www.chess.com"]